Workbook

Sheet Instructions & Summary
B2: 2026 Green Communities Product Category Screening Template (6.1 & 6.4)
B4: INSTRUCTIONS:
B5: INTENT: This template supports Criteria 6.1 (Product Screening) and 6.4 (Advanced Material Selection). Use it to track and document compliant material choices from design through construction. 1. COMPLETE PROJECT INFO - White cells indicate fields where project teams enter information; shaded cells are prepopulated. - In this tab ('Instructions & Summary' ), enter project name and anticipated submission date. - At submission, add the responsible party (typically the architect) name and signature at the bottom of this sheet. 2. COMPLETE REQUIRED TABS - Use '6.1 Product Category Screening' to evaluate materials early in design. - Use '6.4 Advanced Material Selection' to track materials from design to installation, verifying they meet health and climate requirements. - Follow the instructions found at the top of each tab, referring to the 'References' tab when prompted. - Inputs will be automatically tallied and results shown in the Compliance Summary & Point Totals table below. 3. SUBMIT DOCUMENTATION - Submit this completed template and supporting documentation (e.g., product cut sheets) as part of the project's Pre-build (6.1) and Post-build (6.4) submissions. For more information about the Criteria 6.1 & 6.4 requirements and documentation instructions, review the Green Communities website (https://www.greencommunitiesonline.org/ ), and the 'References' tab at the end of this workbook.
B7: Project Name: | D7: Submission Date:
B9: Compliance Summary & Point Totals
B11: Criterion | D11: Optional Points Achieved
B12: 6.1 Product Category Screening (Optional 4 points)
B13: Embodied Carbon | C13: =IF('6.1 Product Category Screening'!C11="","Category 1",'6.1 Product Category Screening'!C11) -> Category 1
C14: =IF('6.1 Product Category Screening'!C12="","Category 2",'6.1 Product Category Screening'!C12) -> Category 2
C15: =IF('6.1 Product Category Screening'!C13="","Category 3",'6.1 Product Category Screening'!C13) -> Category 3
B16: Material Health | C16: =IF('6.1 Product Category Screening'!C23="","Category 1",'6.1 Product Category Screening'!C23) -> Category 1
C17: =IF('6.1 Product Category Screening'!C24="","Category 2",'6.1 Product Category Screening'!C24) -> Category 2
C18: =IF('6.1 Product Category Screening'!C25="","Category 3",'6.1 Product Category Screening'!C25) -> Category 3
B19: 6.4 Advanced Material Selection
B20: Adhesives and sealants | D20: ='6.4 Advanced Material Selection'!L9 -> NA
B21: Cladding, exterior wall | D21: ='6.4 Advanced Material Selection'!L114 -> 
B22: Concrete | D22: ='6.4 Advanced Material Selection'!L219 -> 
B23: Flooring | D23: ='6.4 Advanced Material Selection'!L324 -> 
B24: Gypsum wallboard | D24: ='6.4 Advanced Material Selection'!L429 -> 
B25: Insulation | D25: ='6.4 Advanced Material Selection'!L534 -> 
B26: Paints and other coatings
B27: Steel
B28: Wall coverings | D28: ='6.4 Advanced Material Selection'!L849 -> NA
B29: Wood, composite | D29: ='6.4 Advanced Material Selection'!L954 -> 
B30: Wood, non-composite | D30: ='6.4 Advanced Material Selection'!L1059 -> 
B32: Total Optional Points for Criteria 6.1 & 6.4
B35: Responsible Party Signature:
B36: Role:
B41: Last updated: August 2026

Sheet 6.1 Product Category Screening
B1: 6.1 Product Category Screening (Optional 4 points)
B3: INSTRUCTIONS: | E3: LEGEND:
B4: To expand or collapse instructions/legend, use 'Show/Hide Instructions' button in Column I. INTENT: Use this tool early in design to understand the impact of material choices. 1. IDENTIFY TARGETED PRODUCTS - Choose at least 3 product categories each for embodied carbon and material health (Column C). 2. SCREEN USING APPROVED RESOURCES - Choose any appropriate screening resource for each category (Column D) using the dropdown. - Use the chosen resource to evaluate the potential impacts of different product selections. - For embodied carbon, prioritize % reduction in GWP (kgCO2e/m2) - assume a 60 year service life. - For material health, prioritize avoidance of substances of concern. 3. SHARE FINDINGS - Share findings with team members who hold decision-making power for the products in question. - Regardless of outcome, share the reflection of the findings and decisions (Column F) at Prebuild. 4. SUBMIT SCREENING TEMPLATE - To earn credit in 6.1, this completed template must be submitted at Prebuild. - At least three product categories must be screened for both Embodied Carbon and Material Health. - Additional categories may be evaluated, but only the first three count toward 6.1 compliance. 5. OPTIONAL - POST-BUILD REFLECTION - Document whether the screening influenced final product selection (Column G/H) at post-build. - To expand or collapse post-build columns, use 'Show/Hide Post- Build' button in Column I. To ensure proper print settings, select 'Fit All Columns on One Page.' | E4: White cells: Editable; enter product data here Green cells: Pre-Build evaluation (required submission) Blue cells: Post-Build evaluation (recommended submission)
B6: Project Name: | C6: =IF('Instructions & Summary'!C7="","",'Instructions & Summary'!C7) ->  | E6: Submission Date: | F6: =IF('Instructions & Summary'!E7="","",'Instructions & Summary'!E7) -> 
B8: 6.1 Embodied Carbon Screening
B9: Spec Reference (Optional) | C9: Pre-Build | G9: Post-Build
C10: Product Category (Choose one) | D10: Screening Resource (Choose one) | E10: Were results shared with appropriate team members? (Yes / No) | F10: Screening Results Reflection (Highest impact products, opportunities, challenges) | G10: Did screening (6.1) inform product selection (6.4)? (Yes / No) | H10: Final Reflection (Optional)
B20: 6.1 Material Health Screening
B21: Spec Reference (Optional) | C21: Pre-Build | G21: Post-Build
C22: Product Category (Choose one) | D22: Screening Resource (Choose one) | E22: Were results shared with appropriate team members? (Yes / No) | F22: Screening Results Reflection (Highest impact products, opportunities, challenges) | G22: Did screening (6.1) inform product selection (6.4)? (Yes / No) | H22: Final Reflection (Optional)

Sheet 6.4 Advanced Material Selection
B1: 6.4 Advanced Material Selection (Mandatory & Optional, 31 points maximum)
B3: INSTRUCTIONS | I3: LEGEND
B4: To expand or collapse instructions/legend, use 'Show/Hide Instructions' button in Column M. INTENT: Track materials from design through installation and confirm compliance with health and climate impact requirements. 1. IDENTIFY PRODUCTS AND REQUIREMENTS APPLICABLE TO THE PROJECT - Use 'Show/Hide Category' buttons (Column M) to expand or collapse sections, and 'Show/Hide Rows' as needed to enter more products. - Use the criteria or 'References' tab to locate specific requirements and approved certifications/standards. - Be sure to select the Option pursued (Column L) where applicable to accurately tally points. 2. DOCUMENT ADVANCED MATERIALS SELECTED AND INSTALLED - Enter product data in white cells, including name, manufacturer, quantity, and any applicable requirements met (Columns G-L). - For each category, track installed quantity by either cost ($) or volume (L). - If multiple compliance options exist, confirm the path chosen in Column L. - Optional points and mandatory requirements will auto-populate based on data entered. - Include all installed products needed to demonstrate compliance (use additional rows as needed). - Not all options apply to all products; 'NA' indicates requirement or points are not applicable. - To remove data, right-click selected cell(s) and choose 'Clear Contents.' 3. SUBMIT SCREENING TEMPLATE - This completed template must be submitted at Post-build to satisfy mandatory and optional criteria. To ensure proper print settings, select 'Fit All Columns on One Page.' | I4: White cells: Editable; enter product data here Yellow cells: Auto-populated Green cells: Mandatory criteria Blue cells: Optional criteria
B6: Project Name: | D6: =IF('Instructions & Summary'!C7="","",'Instructions & Summary'!C7) ->  | G6: Submission Date: | H6: =IF('Instructions & Summary'!E7="","",'Instructions & Summary'!E7) -> 
B8: Product Information | G8: 6.4 Advanced Material Selection
B9: Adhesives and sealants, wet-applied interior | G9: Mandatory requirements met? | H9: =IF(OR(H113="",I113=""),"",IF(AND(H113=100%,I113>=80%),"Yes","No")) ->  | K9: Optional points total: | L9: NA
B10: Mandatory - All adhesives and sealants applied inside the air barrier. *See Table 6.4a in 'References' tab for VOC Content thresholds. | G10: Option pursued: | L10: NA
C11: Product Name | D11: Manufacturer Name | E11: Estimated Product Cost (Optional for this category) | G11: Mandatory No additional points
G12: Estimated Product Volume (Liters) | H12: VOC Content (g/L) 100% compliance If not met, type 'NA' in cell. | I12: Approved VOC Emissions Certification or Standard ≥ 80% compliance If no certification/standard is available, type 'NA' in cell.
B13: 1
B14: =B13+1 -> 2
B15: =B14+1 -> 3
B16: =B15+1 -> 4 | Q16: `
B17: 5 | O17: `
B18: =B17+1 -> 6
B19: 7
B20: 8
B21: 9
B22: 10
B23: 11
B24: 12
B25: 13
B26: 14
B27: 15
B28: 16
B29: 17
B30: 18
B31: 19
B32: 20
B33: 21
B34: 22
B35: 23
B36: 24
B37: 25
B38: 26
B39: 27
B40: 28
B41: 29
B42: 30
B43: 31
B44: 32
B45: 33
B46: 34
B47: 35
B48: 36
B49: 37
B50: 38
B51: 39
B52: 40
B53: 41
B54: 42
B55: 43
B56: 44
B57: 45
B58: 46
B59: 47
B60: 48
B61: 49
B62: 50
B63: 51
B64: 52
B65: 53
B66: 54
B67: 55
B68: 56
B69: 57
B70: 58
B71: 59
B72: 60
B73: 61
B74: 62
B75: 63
B76: 64
B77: 65
B78: 66
B79: 67
B80: =B79+1 -> 68
B81: 69
B82: 70
B83: 71
B84: 72
B85: 73
B86: 74
B87: 75
B88: 76
B89: 77
B90: 78
B91: 79
B92: 80
B93: =B92+1 -> 81
B94: 82
B95: 83
B96: 84
B97: 85
B98: 86
B99: 87
B100: 88
B101: 89
B102: 90
B103: =B102+1 -> 91
B104: 92
B105: 93
B106: 94
B107: 95
B108: 96
B109: 97
B110: 98
B111: =B110+1 -> 99
B112: =B111+1 -> 100
B113: Compliance Summary: | E113: =SUM(E13:E112) -> 0 | G113: =SUMPRODUCT(IFERROR(--G13:G112,0)) -> 0 | H113: =IFERROR((COUNTA(H13:H112)-COUNTIF(H13:H112,"NA"))/COUNTA(H13:H112),"") ->  | I113: =IFERROR( SUMPRODUCT( --(I13:I112<>""), --(I13:I112<>"NA"), IFERROR(VALUE(G13:G112),0) ) /SUMPRODUCT(IFERROR(VALUE(G13:G112),0)), "") -> 
B114: Cladding, exterior wall | K114: Optional points total: | L114: =IF(G218="","", IF(G218=100%,2,0)) -> 
B115: Optional | G115: Option pursued: | L115: NA
C116: Product Name | D116: Manufacturer Name | E116: Estimated Product Cost | G116: Optional 2 points
G117: Compliant Cladding Material (Choose types) 100% compliance
B118: 1
B119: =B118+1 -> 2
B120: =B119+1 -> 3
B121: =B120+1 -> 4
B122: 5
B123: =B122+1 -> 6
B124: 7
B125: 8
B126: 9
B127: 10
B128: 11
B129: 12
B130: 13
B131: 14
B132: 15
B133: 16
B134: 17
B135: 18
B136: 19
B137: 20
B138: 21
B139: 22
B140: 23
B141: 24
B142: 25
B143: 26
B144: 27
B145: 28
B146: 29
B147: 30
B148: 31
B149: 32
B150: 33
B151: 34
B152: 35
B153: 36
B154: 37
B155: 38
B156: 39
B157: 40
B158: 41
B159: 42
B160: 43
B161: 44
B162: 45
B163: 46
B164: 47
B165: 48
B166: 49
B167: 50
B168: 51
B169: 52
B170: 53
B171: 54
B172: 55
B173: 56
B174: 57
B175: 58
B176: 59
B177: 60
B178: 61
B179: 62
B180: 63
B181: 64
B182: 65
B183: 66
B184: 67
B185: =B184+1 -> 68
B186: 69
B187: 70
B188: 71
B189: 72
B190: 73
B191: 74
B192: 75
B193: 76
B194: 77
B195: 78
B196: 79
B197: 80
B198: 81
B199: 82
B200: 83
B201: 84
B202: 85
B203: 86
... 961 more rows

Sheet References
B1: References - Criterion 6.1 Product Category Screening
B2: REQUIREMENTS
B3: During the concept or schematic design phase, project teams must perform a screening exercise — a high-level review of product categories — to understand the embodied carbon and material health implications of their initial product selections. This step is intended to inform project teams’ design decisions, not to finalize product selections. To perform the screening, complete all of the following [4 points]: • Select at least three product categories to screen for embodied carbon and at least three product categories to screen for material health from the product category lists below. Categories should align with materials most likely to be used in the project, prioritized by volume. • Select at least one screening resource to evaluate materials for their embodied carbon impacts and one screening resource to evaluate materials for potential health impacts. • Use the Green Communities Product Category Screening Template to document the screening results for the project’s initial material health and embodied carbon impacts and, if applicable, identify opportunities to avoid the worst impacts from products by shifting to those with lower embodied carbon and/or with lower risk of potential negative health impacts. • Share the screening results with appropriate team members, including designers, general contractor, relevant trades, and sustainability consultants. • Ensure team members consider the screening results when selecting products, writing specifications, and procuring products and materials.
B4: References - Criterion 6.4 Advanced Material Selection
B5: REQUIREMENTS
B6: Use products that comply with the specifications below. Notes for all product categories: • Percentages of installed quantities are by cost or volume within the product category, except where existing materials are preserved or repaired. • “CDPH Standard Method” refers to the Standard Method for the Testing and Evaluation of Volatile Organic Chemical Emissions from Indoor Sources using Environmental Chambers, version 1.2, from the California Department of Public Health. • PFAS, commonly known as “forever chemicals,” are per- and polyfluoroalkyl substances, which are common coatings on consumer products, including food containers. In construction, they are often used on textiles, window treatments, and exteriors to repel dirt and stains.
B7: Adhesives and sealants, wet-applied interior
B8: SCAQMD 1113 Reference
B9: Rule 1168 SCAQMD Volatile Organic Compound (VOC) Limits as of February 5, 2016, Adhesive & Sealants
B11: MANDATORY | C11: OPTIONAL
B12: For adhesives and sealants applied inside the air barrier: • VOC content is less than or equal to the thresholds provided by the most recent version of South Coast Air Quality Management District (SCAQMD) 1168 available at the time of product specification. • VOC emissions of 80% by volume are verified as meeting the CDPH Standard Method for the school or residential scenario. | C12: None for this category.
B14: Cladding, exterior wall
B16: MANDATORY | C16: OPTIONAL
B17: None for this category. | C17: If not preserved or repaired existing cladding, 100% of exterior wall cladding is expanded cork board, natural wood (including heat treated), bamboo, engineered wood, thin brick, natural stone, ceramic, terra-cotta, lime plaster, or fiber cement. [2 points]
B19: Concrete
B21: MANDATORY | C21: OPTIONAL
B22: None for this category. | C22: Use the most recent Carbon Leadership Forum North American Material Baselines report or current, regional industry-average environmental product declarations (EPDs) to determine typical impact values per concrete strength class in the property’s location. Provide a product-specific EPD for at least 90% of newly installed concrete, demonstrating global warming potential (GWP) that is either: • 20% lower than the regional average [5 points] • No higher than the regional average [2 points]
B24: Flooring
B26: MANDATORY | C26: OPTIONAL
B27: Implement Option 1: Best-in-class flooring standards OR Option 2: Minimum flooring standards. Points are available for selecting Option 1 or for going beyond the minimum standards in Option 2. Option 1: Best-in-class flooring standards A minimum of 90% of all flooring is a combination of 1) repaired existing floor, 2) linoleum, 3) solid wood flooring that is FSC-certified or salvaged wood, 4) pre-finished engineered wood or bamboo, 5) pre-finished cork (excluding rubber/cork composite), 6) no floorcovering (e.g., concrete or CLT structural slab without a finish or sealer) or 7) ceramic / porcelain tile (no added lead). [4 points] Option 2: Minimum flooring standards • All flooring products are either an inherently nonemitting source of VOCs (such as unfinished stone or porcelain tile) or have VOC emissions verified as meeting the requirements of the CDPH Standard Method for school or residential scenarios. • No carpet may be installed in building entryways, laundry rooms, bathrooms, kitchens/ kitchenettes, or utility rooms. Walk-off mats manufactured especially for that purpose are acceptable at entryways. • None of the below may be installed: - Flexible PVC with phthalates (in either vinyl flooring or carpet backings) - Rubber or rubber–cork flooring made with tire-derived crumb rubber - Carpet with intentionally added PFAS stain-repellant treatments • Fluid-applied finish floors may be installed only in spaces that are not regularly occupied, such as mechanical rooms. | C27: Project teams implementing Option 2: Minimum flooring standards may also select any, all, or none of the below for points: • All flooring adhesives, coating, and sealants, whether pre-applied or site-applied, do not contain PFAS. Site-applied flooring adhesives, coatings, and sealants meet CDPH Standard Method emission requirements and do not contain epoxy or polyurethane. [1 point] • No carpet is installed anywhere in the project. [1 point] • No vinyl flooring is installed anywhere in the project. [1 point]
C28: Paint, interior
B29: Gypsum wallboard
B31: MANDATORY | C31: OPTIONAL
B32: None for this category. | C32: At least 60% of all newly installed interior gypsum wallboard is lightweight gypsum board AND meets CDPH Standard Method emission requirements. [2 points]
B34: Insulation
B36: MANDATORY | C36: OPTIONAL
B37: Implement Option 1: Best-in-class insulation standards, Option 2: Intermediate insulation standards, or Option 3: Minimum insulation standards. Points are available for selecting Option 1 or Option 2. Option 1: Best-in-class insulation standards At least 75% of all newly installed above-grade insulation (exterior and interior) is bio-based, such as wood fiber, hemp fiber, cellulose or cotton, hempcrete, or straw. All other insulation meets the minimum requirements in Option 3. [5 points] Option 2: Intermediate insulation standards At least 90% of all newly installed above-grade insulation (exterior and interior) is bio-based (acceptable materials are listed in Option 1), fiberglass batts, formaldehyde-free mineral wool batts, and/or unfaced fiberglass or mineral wool boards. [3 points] Option 3: Minimum insulation standards • Mineral wool batt insulation, if used, is formaldehyde free. • Two-part spray polyurethane foam may be used in limited scope only to establish a sealed air barrier if no other viable material options are available. • Foam insulation, if used, has blowing agents with low global warming potential (GWP150). | C37: None for this category.
B39: Paint and other coatings, wet-applied interior
B41: MANDATORY | C41: OPTIONAL
B42: Implement Option 1: Best-in-class paint and coating standards, Option 2: Intermediate paint and coating standards, or Option 3: Minimum paint and coating standards below. Points are available for selecting Option 1 or Option 2. Option 1: Best-in-class coating standards At least 50% of all paints are mineral paint, such as lime or mineral silicate, and 90% of the remaining portion of paints, coatings, and primers meet the requirements of Option 3: Minimum coating standards. [4 points] Option 2: Intermediate coating standards At least 90% of interior paints, coatings, and primers are free of PFAS and alkylphenol ethoxylates (APEs) and meet the requirements of Option 3: Minimum paint and coating standards. Mineral paints are exempt from documentation. [2 points] Option 3: Minimum coating standards For interior paints, coatings, and primers: • VOC content is less than or equal to the thresholds provided by the most recent version of SCAQMD 1113 available at time of product specification. • VOC emissions of 90% by volume are verified as compliant with CDPH Standard Method for school or residential exposure scenarios. | C42: None for this category.
B44: Steel
B46: MANDATORY | C46: OPTIONAL
B47: None for this category. | C47: Implement either Option 1 or Option 2 below. Option 1: Best-in-class steel standards Specify 100% steel produced by electric-arc furnace, and/or with at least 90% recycled content, instead of by blast furnace or basic oxygen furnace. [4 points] Option 2: Intermediate steel standards For 75% of steel deck and cold-formed steel framing AND For 75% of structural steel, specify products with global warming potential (GWP) at least 20% lower than baseline as indicated in the most recent Carbon Leadership Forum North American Material Baselines report. [3 points]
B49: Wall coverings
B51: MANDATORY | C51: OPTIONAL
B52: Do not install wall coverings that contain vinyl. | C52: None for this category.
B54: Wood, composite
B56: MANDATORY | C56: OPTIONAL
B57: Formaldehyde emissions must be less than or equal to the thresholds provided by California Air Resources Board (CARB) Phase II Composite Wood Products Airborne Toxic Control Measure and/or Toxic Substances Control Act (TSCA) Title IV for all hardwood plywood, particleboard, medium-density fiberboard (MDF), and these materials within other products (e.g., cabinets and doors). | C57: In addition, teams may also select either, both, or none of the below. • All composite wood products are certified to have no added formaldehyde (NAF). [2 points] • At least 50% of composite wood installed as part of the project is certified to the Forest Stewardship Council (FSC) standard. [2 points]
B59: Wood, noncomposite
B61: MANDATORY | C61: OPTIONAL
B62: None for this category. | C62: At least 50% of noncomposite wood installed as part of the project is certified to the Forest Stewardship Council standard. [2 points]
B64: Wet-applied products, VOC limits
B66: Table 6.4a | Selected Limits for Wet-Applied Adhesives and Sealants: SQACMD 1168
B67: As of October 9, 2025
B68: Product Type | C68: Maximum VOC Limit (g/l)
B69: Carpet pad adhesives | C69: 50
B70: Wood flooring adhesives | C70: 120
B71: Rubber floor adhesives | C71: 60
B72: Subfloor adhesives | C72: 50
B73: Vinyl composition tile and asphalt tile adhesives | C73: 50
B74: Drywall and panel adhesives | C74: 50
B75: Cove base adhesives | C75: 50
B76: Multipurpose construction adhesives | C76: 70
B77: Structural glazing adhesives | C77: 100
B78: Structural wood member adhesive | C78: 140
B79: Architectural sealants: clear, paintable, and immediately water-resistant | C79: 250
B80: Architectural sealant primers: nonporous | C80: 250
B81: Architectural sealant primers: porous | C81: 775
B83: Table 6.4b | Selected Limits for Wet-Applied Paints and Other Coatings: SQACMD 1113
B84: As of October 9, 2025
B85: Product Type | C85: Maximum VOC Limit (g/l)
B86: Primers, sealers, and undercoatings | C86: 100
B87: Coatings, flats and non-flats, and floor | C87: 50
B88: Rust-preventive coatings | C88: 100
B89: Wood coatings | C89: 275
B90: Stains, interior | C90: 250
B91: Tub and tile refinishing coatings | C91: 420
B93: Concrete, CLF North American Material Baselines
B94: CLF Reference:
B95: 2025 CLF North American Material Baselines
B97: USA ready-mixed concrete baseline values | D97: GWP values in kg CO2e/m3, A1–A3.
B98: Product region | D98: 3000 psi | E98: 4000 psi | F98: 5000 psi | G98: 6000 psi | H98: 8000 psi | I98: 9000 psi | J98: 10,000 psi | K98: 12,000 psi | L98: 3000 psi LW | M98: 4000 psi LW | N98: 5000 psi LW
B99: Pacific Southwest | D99: 257 | E99: 279 | F99: 323 | G99: 378 | H99: 456 | I99: 437 | J99: 471 | K99: -- | L99: 500 | M99: 546 | N99: 594
B100: Pacific Northwest | D100: 235 | E100: 261 | F100: 316 | G100: 386 | H100: 487 | I100: 378 | J100: 470 | K100: -- | L100: 518 | M100: 575 | N100: 632
B101: Rocky Mountains | D101: 232 | E101: 255 | F101: 301 | G101: 358 | H101: 440 | I101: -- | J101: 387 | K101: -- | L101: 484 | M101: 532 | N101: 580
B102: South Central | D102: 226 | E102: 245 | F102: 286 | G102: 336 | H102: 409 | I102: -- | J102: -- | K102: -- | L102: 468 | M102: 510 | N102: 555
B103: North Central | D103: 241 | E103: 264 | F103: 312 | G103: 372 | H103: 460 | I103: -- | J103: -- | K103: -- | L103: 487 | M103: 537 | N103: 591
B104: Southeastern | D104: 247 | E104: 268 | F104: 309 | G104: 360 | H104: 435 | I104: 534 | J104: 609 | K104: 593 | L104: 478 | M104: 521 | N104: 562
B105: Great Lakes | D105: 232 | E105: 255 | F105: 303 | G105: 363 | H105: 452 | I105: -- | J105: -- | K105: -- | L105: 499 | M105: 551 | N105: 603
B106: Eastern | D106: 240 | E106: 264 | F106: 314 | G106: 378 | H106: 472 | I106: 410 | J106: 429 | K106: 353 | L106: 517 | M106: 573 | N106: 628
B107: National | D107: 240 | E107: 262 | F107: 308 | G107: 365 | H107: 446 | I107: -- | J107: -- | K107: -- | L107: 492 | M107: 540 | N107: 588
B109: USA Industry EPD counts and GWP summary statistics | D109: GWP values in kg CO2e/m3, A1–A3.
B110: Product region | C110: Industry EPDs | D110: 2500 psi | E110: 3000 psi | F110: 4000 psi | G110: 5000 psi | H110: 6000 psi | I110: 8000 psi | J110: 9000 psi | K110: 10,000 psi | L110: 12,000 psi | M110: 3000 psi LW | N110: 4000 psi LW | O110: 5000 psi LW
B111: Pacific Southwest | C111: EPD Count | D111: 1 | E111: 1 | F111: 1 | G111: 1 | H111: 1 | I111: 1 | J111: 0 | K111: 0 | L111: 0 | M111: 1 | N111: 1 | O111: 1
C112: GWP Mean | D112: 257 | E112: 279 | F112: 323 | G112: 378 | H112: 401 | I112: 456 | J112: -- | K112: -- | L112: -- | M112: 500 | N112: 546 | O112: 594
B113: Pacific Northwest | C113: EPD Count | D113: 1 | E113: 1 | F113: 1 | G113: 1 | H113: 1 | I113: 1 | J113: 0 | K113: 0 | L113: 0 | M113: 1 | N113: 1 | O113: 1
C114: GWP Mean | D114: 235 | E114: 261 | F114: 316 | G114: 386 | H114: 408 | I114: 487 | J114: -- | K114: -- | L114: -- | M114: 518 | N114: 575 | O114: 632
B115: Rocky Mountains | C115: EPD Count | D115: 1 | E115: 1 | F115: 1 | G115: 1 | H115: 1 | I115: 1 | J115: 0 | K115: 0 | L115: -- | M115: 1 | N115: 1 | O115: 1
C116: GWP Mean | D116: 232 | E116: 255 | F116: 301 | G116: 358 | H116: 379 | I116: 440 | J116: -- | K116: -- | L116: -- | M116: 484 | N116: 532 | O116: 580
B117: South Central | C117: EPD Count | D117: 1 | E117: 1 | F117: 1 | G117: 1 | H117: 1 | I117: 1 | J117: 0 | K117: 0 | L117: 0 | M117: 1 | N117: 1 | O117: 1
C118: GWP Mean | D118: 226 | E118: 245 | F118: 286 | G118: 336 | H118: 356 | I118: 409 | J118: -- | K118: -- | L118: -- | M118: 468 | N118: 510 | O118: 555
B119: North Central | C119: EPD Count | D119: 1 | E119: 1 | F119: 1 | G119: 1 | H119: 1 | I119: 1 | J119: -- | K119: 0 | L119: 0 | M119: 1 | N119: 1 | O119: 1
C120: GWP Mean | D120: 241 | E120: 264 | F120: 312 | G120: 372 | H120: 394 | I120: 460 | J120: -- | K120: -- | L120: -- | M120: 487 | N120: 537 | O120: 591
B121: Southeastern | C121: EPD Count | D121: 1 | E121: 1 | F121: 1 | G121: 1 | H121: 1 | I121: 1 | J121: 0 | K121: 0 | L121: 0 | M121: 1 | N121: 1 | O121: 1
C122: GWP Mean | D122: 247 | E122: 268 | F122: 309 | G122: 360 | H122: 382 | I122: 435 | J122: -- | K122: -- | L122: -- | M122: 478 | N122: 521 | O122: 562
B123: Great Lakes Midwest | C123: EPD Count | D123: 1 | E123: 1 | F123: 1 | G123: 1 | H123: 1 | I123: 1 | J123: -- | K123: 0 | L123: 0 | M123: 1 | N123: 1 | O123: 1
C124: GWP Mean | D124: 232 | E124: 255 | F124: 303 | G124: 363 | H124: 383 | I124: 452 | J124: -- | K124: -- | L124: -- | M124: 499 | N124: 551 | O124: 603
B125: Eastern | C125: EPD Count | D125: 1 | E125: 1 | F125: 1 | G125: 1 | H125: 1 | I125: 1 | J125: 0 | K125: 0 | L125: 0 | M125: 1 | N125: 1 | O125: 1
C126: GWP Mean | D126: 240 | E126: 264 | F126: 314 | G126: 378 | H126: 299 | I126: 472 | J126: -- | K126: -- | L126: -- | M126: 517 | N126: 573 | O126: 628
B128: Steel, CLF North American Material Baselines
B129: CLF Reference:
B130: 2025 CLF North American Material Baselines
B132: USA steel baseline values | D132: GWP values in kg CO2e/m3.
B133: Product type | D133: Baseline GWP (kg CO2e) | G133: Data source and notes | L133: Baseline method; Representativeness assessment approach*
B134: Rebar, unfabricated | D134: 753 | G134: Rebar industry-average EPD (CRSI, 2022). CLF converted from the industry EPD's fabricated result to unfabricated GWP | L134: Industry (single); industry data
B135: Rebar, fabricated | D135: 854 | G135: Rebar industry-average EPD (CRSI, 2022) | L135: Industry (single); industry data
B136: Hot-rolled sections, unfabricated | D136: 901 | G136: Hot-rolled structural steel sections industry-average LCA report (JBE, 2025) | L136: Industry (single)
B137: Hot-rolled sections, fabricated | D137: 1080 | G137: Hot-rolled structural steel sections industry-average LCA report (JBE, 2025) | L137: Industry (single)
B138: Steel plate, unfabricated | D138: 1480 | G138: Steel plate industry-average EPD (AISC, 2021b). CLF converted from the industry EPD's fabricated result to unfabricated GWP. | L138: Industry (single)
B139: Steel plate, fabricated | D139: 1730 | G139: Steel plate industry-average EPD (STI, 2021) | L139: Industry (single)
B140: HSS, unfabricated | D140: 1710 | G140: HSS industry-average EPD (STI, 2021) | L140: Industry (single)
B141: HSS, fabricated | D141: 1990 | G141: Fabricated HSS industry-average EPD (AISC, 2021a) | L141: Industry (single)
B142: Cold-formed steel framing | D142: 2440 | G142: Cold-formed steel framing industry-average EPD (SFIA, 2021) | L142: Industry (single)
B143: Steel deck | D143: 2330 | G143: Steel deck industry-average EPD (SDI, 2022) | L143: Industry (single); industry data
B144: Open-web steel joist | D144: 1430 | G144: OWSJ industry-average EPD (SJI, 2022) | L144: Industry (single)

Sheet 6.1 - EXAMPLE
B1: EXAMPLE Completed 6.1 Template
B3: Project Name: | C3: =IF('Instructions & Summary'!C6="","",'Instructions & Summary'!C6) ->  | E3: Submission Date: | F3: =IF('Instructions & Summary'!E6="","",'Instructions & Summary'!E6) -> 
B5: 6.1 Embodied Carbon Screening
B6: Spec Reference (Optional) | C6: Pre-Build | G6: Post-Build
C7: Product Category (Choose one) | D7: Screening Resource (Choose one) | E7: Were results shared with appropriate team members? (Yes / No) | F7: Screening Results Reflection (Highest impact products, opportunities, challenges) | G7: Did screening (6.1) inform product selection (6.4)? (Yes / No) | H7: Final Reflection (Optional)
B8: 09 65 00 | C8: Flooring | D8: Embodied Carbon in Construction Calculator (EC3) | E8: Yes | F8: Highest impact products: Luxury vinyl plank Opportunities: Sub vinyl for linoleum Challenges: $$$ | G8: Yes | H8: LVP was replaced with linoleum, leading to 80% reduction in GWP (LVP = 62 CO₂e/m²; Linoleum = 12 CO₂e/m²)
B9: 03 05 00 03 30 00 | C9: Concrete | D9: Carbon Designer 3D (CD3D) by One Click LCA | E9: Yes | F9: Highest impact products: Current Portland cement mix design Opportunities: Subbing current mix design for one that is less than industry average. Portland-limestone mix is possible alternative Challenges: Category is one of the top contributors to total GWP on the project. | G9: Yes | H9: Adjusting concrete mix design by replacing clinker with limestone led to 9% reduction in embodied carbon. Carbon intensity score for entire project shifted from a C to B from pre-build to post-build.
B10: 09 29 00 | C10: Gypsum | D10: Common Materials Framework (CMF) climate health impact area | E10: Yes | F10: Current gypsum board can be subbed for lightweight gypsum board. | G10: Yes | H10: Sheetrock brand gypsum was used due to 21% reduction in GWP.
B17: 6.1 Material Health Screening
B18: Spec Reference (Optional) | C18: Pre-Build | G18: Post-Build
C19: Product Category (Choose one) | D19: Screening Resource (Choose one) | E19: Were results shared with appropriate team members? (Yes / No) | F19: Screening Results Reflection (Highest impact products, opportunities, challenges) | G19: Did screening (6.1) inform product selection (6.4)? (Yes / No) | H19: Final Reflection (Optional)
B20: 09 91 23 | C20: Paint, interior | D20: Habitable’s Informed product guidance and benchmarking tools | E20: Yes | F20: Goal = all paints should aim to be zero-VOC. | G20: Yes | H20: All interior paints onsite are now zero-VOC.
B21: 09 65 00 | C21: Flooring | D21: Habitable’s Informed product guidance and benchmarking tools | E21: Yes | F21: Project had previously considered the use of carpet tile with a vinyl backing on project. Reviewing product guidance has led team to consider no vinyl backing/removing carpet all together. Highest impact product: Tarkett carpet tile | G21: Yes | H21: All carpet has been removed from the project.
B22: 07 21 00 | C22: Paint, interior | D22: Habitable’s Informed product guidance and benchmarking tools | E22: Yes | F22: - Project considering use of insulation that is not bio-based - Project considering several brands that are not compliant with formaldehyde standards. - Architect to consider altering choices to meet standards and to consider bio-based options. | G22: Yes | H22: Though bio-based insulation was not used on the project, all insulation now meets formaldehyde standards.

Sheet 6.4 - EXAMPLE
B1: EXAMPLE Completed 6.4 Template
B3: Project Name: | D3: =IF('Instructions & Summary'!C6="","",'Instructions & Summary'!C6) ->  | G3: Submission Date: | H3: =IF('Instructions & Summary'!E6="","",'Instructions & Summary'!E6) -> 
B5: Product Information | G5: 6.4 Advanced Material Selection
B6: Adhesives and sealants, wet-applied interior | G6: Mandatory requirements met? | H6: =IF(OR(H110="",I110=""),"",IF(AND(H110=100%,I110>=80%),"Yes","No")) -> Yes | K6: Optional points total: | L6: NA
B7: Mandatory - All adhesives and sealants applied inside the air barrier. *See Table 6.4a in 'References' tab for VOC Content thresholds. | G7: Option pursued: | L7: NA
C8: Product Name | D8: Manufacturer Name | E8: Estimated Product Cost (Optional for this category) | G8: Mandatory No additional points
G9: Estimated Product Volume (Liters) | H9: VOC Content (g/L) 100% compliance If not met, type 'NA' in cell. | I9: Approved VOC Emissions Certification or Standard ≥ 80% compliance If no certification/standard is available, type 'NA' in cell.
B10: 1 | C10: AC 20+ Silicone | D10: Pecora | E10: 6500 | G10: 250 | H10: 98 | I10: Greenguard Gold
B11: =B10+1 -> 2 | C11: 3000 Carpet Tile Adhesive | D11: ShawContract | E11: 4000 | G11: 60 | H11: 8 | I11: Floor Score
B12: =B11+1 -> 3 | C12: Fire Barrier Sealant CP 25WB+ | D12: 3M | E12: 500 | G12: 18 | H12: 6 | I12: Intertek Clean Air Gold
B13: =B12+1 -> 4 | C13: Fire Barrier 1003SL | D13: 3M | E13: 500 | G13: 18 | H13: 53 | I13: Intertek Clean Air Gold | Q13: `
B14: 5 | C14: 960 Wallbase Adhesive | D14: Tarkett | E14: 2000 | G14: 450 | H14: 0 | I14: Floor Score | O14: `
B15: =B14+1 -> 6 | C15: Mapelastic AquaDefense | D15: Mapei | E15: 3000 | G15: 20 | H15: 100 | I15: SCS Indoor Advanatage Gold
B16: 7
B17: 8
B18: 9
B19: 10
B20: 11
B21: 12
B22: 13
B23: 14
B24: 15
B25: 16
B26: 17
B27: 18
B28: 19
B29: 20
B30: 21
B31: 22
B32: 23
B33: 24
B34: 25
B35: 26
B36: 27
B37: 28
B38: 29
B39: 30
B40: 31
B41: 32
B42: 33
B43: 34
B44: 35
B45: 36
B46: 37
B47: 38
B48: 39
B49: 40
B50: 41
B51: 42
B52: 43
B53: 44
B54: 45
B55: 46
B56: 47
B57: 48
B58: 49
B59: 50
B60: 51
B61: 52
B62: 53
B63: 54
B64: 55
B65: 56
B66: 57
B67: 58
B68: 59
B69: 60
B70: 61
B71: 62
B72: 63
B73: 64
B74: 65
B75: 66
B76: 67
B77: =B76+1 -> 68
B78: 69
B79: 70
B80: 71
B81: 72
B82: 73
B83: 74
B84: 75
B85: 76
B86: 77
B87: 78
B88: 79
B89: 80
B90: 81
B91: 82
B92: 83
B93: 84
B94: 85
B95: 86
B96: 87
B97: 88
B98: 89
B99: 90
B100: 91
B101: 92
B102: 93
B103: 94
B104: 95
B105: 96
B106: 97
B107: 98
B108: =B107+1 -> 99
B109: =B108+1 -> 100
B110: Compliance Summary: | E110: =SUM(E10:E109) -> 16500 | G110: =SUMPRODUCT(IFERROR(--G10:G109,0)) -> 816 | H110: =IFERROR((COUNTA(H10:H109)-COUNTIF(H10:H109,"NA"))/COUNTA(H10:H109),"") -> 1 | I110: =IFERROR( SUMPRODUCT( --(I10:I109<>""), --(I10:I109<>"NA"), IFERROR(VALUE(G10:G109),0) ) /SUMPRODUCT(IFERROR(VALUE(G10:G109),0)), "") -> 1
B111: Cladding, exterior wall | K111: Optional points total: | L111: =IF(G215="","", IF(G215=100%,2,0)) -> 2
B112: Optional | G112: Option pursued: | L112: NA
C113: Product Name | D113: Manufacturer Name | E113: Estimated Product Cost | G113: Optional 2 points
G114: Compliant Cladding Material (Choose types) 100% compliance
B115: 1 | C115: Tectiva | D115: Equitone | E115: 80000 | G115: Fiber cement
B116: =B115+1 -> 2 | C116: Linea | D116: Equitone | E116: 60000 | G116: Fiber cement
B117: =B116+1 -> 3 | C117: Sigma HCI.22 | D117: ECO Cladding | E117: 40000 | G117: Terra-cotta
B118: =B117+1 -> 4
B119: 5
B120: =B119+1 -> 6
B121: 7
B122: 8
B123: 9
B124: 10
B125: 11
B126: 12
B127: 13
B128: 14
B129: 15
B130: 16
B131: 17
B132: 18
B133: 19
B134: 20
B135: 21
B136: 22
B137: 23
B138: 24
B139: 25
B140: 26
B141: 27
B142: 28
B143: 29
B144: 30
B145: 31
B146: 32
B147: 33
B148: 34
B149: 35
B150: 36
B151: 37
B152: 38
B153: 39
B154: 40
B155: 41
B156: 42
B157: 43
B158: 44
B159: 45
B160: 46
B161: 47
B162: 48
B163: 49
B164: 50
B165: 51
B166: 52
B167: 53
B168: 54
B169: 55
B170: 56
B171: 57
B172: 58
B173: 59
B174: 60
B175: 61
B176: 62
B177: 63
B178: 64
B179: 65
B180: 66
B181: 67
B182: =B181+1 -> 68
B183: 69
B184: 70
B185: 71
B186: 72
B187: 73
B188: 74
B189: 75
B190: 76
B191: 77
B192: 78
B193: 79
B194: 80
B195: 81
B196: 82
B197: 83
B198: 84
B199: 85
B200: 86
B201: 87
B202: 88
... 959 more rows

Sheet 6.1 - Standards (hidden)
A1: Evaluation | B1: Embodied Carbon | C1: Material Health | D1: Embodied Carbon Screening Resources | E1: Material Health Screening Resources
A2: Embodied Carbon | B2: Cladding, exterior wall | C2: Adhesives and sealants, wet-applied interior | D2: Embodied Carbon in Construction Calculator (EC3) | E2: Common Materials Framework (CMF) human health impact area
A3: Material Health | B3: Concrete | C3: Cladding, exterior wall | D3: BEAM Estimator | E3: Habitable’s Informed product guidance and benchmarking tools
B4: Flooring | C4: Flooring | D4: Kaleidoscope: Embodied Carbon Design Tool
B5: Gypsum | C5: Insulation | D5: ZeroGuide
B6: Insulation | C6: Paint, interior | D6: C.Scale
B7: Steel | C7: Wood, composite | D7: Athena Impact
B8: Wood, composite | D8: Tally
B9: Wood, non-composite | D9: Carbon Designer 3D (CD3D) by One Click LCA
D10: Common Materials Framework (CMF) climate health impact area
A25: COLUMN B | B25: COLUMN C | C25: COLUMN C | D25: COLUMN D | E25: COLUMN D

Sheet 6.4 - Standards (hidden)
A1: Flooring Option 1 | B1: Flooring prohibited
A2: Repaired existing floor | B2: Flexible PVC with phthalates (in vinyl flooring/carpet backings) | H2: Expanded cork board | N2: Yes: Product is mineral wool batt that is formaldehyde-free.
A3: Linoleum | B3: Rubber/rubber–cork flooring from tire-derived crumb rubber | H3: Natural wood (including heat treated) | N3: Yes: Product is two-part spray polyurethane foam only used to establish sealed air barrier.
A4: FSC-certified solid wood flooring/salvaged wood | B4: Carpet with intentionally added PFAS stain-repellant treatments | H4: Bamboo | N4: Yes: Product is foam insulation that has blowing agents with low GWP (GWP150).
A5: Pre-finished engineered wood/bamboo | B5: Fluid-applied finish floors in regularly occupied area | H5: Engineered wood | N5: Yes: Product is not one of the above insulation types (compliant).
A6: Pre-finished cork (excluding rubber/cork composite) | B6: Not a prohibited flooring type | H6: Thin brick | N6: No: Product is one of the above insulation types and does not comply with the minimum standard.
A7: No floorcovering (concrete, unfinished CLT structural slab) | H7: Natural stone
A8: Ceramic/porcelain tile (no added lead) | H8: Ceramic
A9: Not a best-in-class flooring type | H9: Terra-cotta
H10: Lime plaster
H11: Fiber cement
H12: Preserved or repaired existing cladding, any material
H13: Not a compliant cladding material | N13: Wood fiber
N14: Hemp fiber
N15: Cellulose or cotton
H16: Bio-based | N16: Hempcrete
H17: Fiberglass batts | N17: Straw
H18: Formaldehyde-free mineral wool batts | N18: Other bio-based material
H19: Unfaced fiberglass/mineral wool boards | N19: Not a bio-based insulation material
H20: Not an intermediate insulation material
N23: Yes: CARB Phase II Composite Wood Products Airborne Toxic Control Measure
N24: Yes: Toxic Substances Control Act (TSCA) Title IV
N25: No: Emissions for product exceed thresholds.
